bitfinex/quotes_SOLUSD_20240613
["timestamp","ask_amount","ask_price","bid_price","bid_amount"]
[1718315828770,7.75,148.0,147.95,21.508]
[1718315830250,0.8238121,148.05,147.95,21.508]
[1718315830470,7.75,147.99,147.95,21.508]
[1718315835568,31.8238121,148.05,147.95,21.508]
[1718315835752,7.75,148.0,147.95,21.508]
[1718315836071,0.8238121,148.05,148.0,21.3502]
[1718315836249,0.8238121,148.05,148.02,7.75]
[1718315837669,0.8238121,148.05,148.0,21.3502]
[1718315838055,0.8238121,148.05,148.01,7.75]
[1718315838868,0.8238121,148.05,148.0,29.1002]
[1718315840178,0.8238121,148.05,148.01,7.75]
[1718315845780,8.5738121,148.05,148.0,29.1002]
[1718315845977,0.8238121,148.05,148.0,29.1002]
[1718315846178,8.5738121,148.05,148.0,29.1002]
[1718315846361,0.8238121,148.05,148.0,29.1002]
[1718315846871,0.8238121,148.05,148.01,7.75]
[1718315847061,0.8238121,148.05,148.0,29.1002]
[1718315848081,0.8238121,148.05,148.01,7.75]
[1718315848468,0.8238121,148.05,148.0,21.3502]
[1718315849402,0.8238121,148.05,148.01,7.75]
[1718315849685,0.8238121,148.05,148.0,21.3502]
[1718315849889,0.8238121,148.05,148.01,7.75]
[1718315856689,0.8238121,148.05,148.02,7.75]
[1718315862307,0.8238121,148.05,148.01,7.75]
[1718315863092,8.5738121,148.05,148.0,23.0433]
[1718315863399,0.8238121,148.05,148.01,7.75]
[1718315863898,0.8238121,148.05,148.0,23.0433]
[1718315865792,0.8238121,148.05,148.01,7.75]
[1718315866599,0.8238121,148.05,148.0,23.0433]
[1718315866911,0.8238121,148.05,148.01,7.75]
[1718315868308,0.8238121,148.05,148.02,1.34876984]
[1718315868786,0.8238121,148.05,148.01,7.75]
[1718315876482,0.8238121,148.05,148.0,15.2933]
[1718315876684,0.8238121,148.05,148.0,23.0433]
[1718315876984,0.8238121,148.05,148.01,7.75]
[1718315878715,0.8238121,148.05,148.0,15.2933]
[1718315879314,0.8238121,148.05,148.0,23.0433]
[1718315879686,0.8238121,148.05,148.01,7.75]
[1718315886113,0.8238121,148.05,148.0,15.2933]
[1718315886317,0.8238121,148.05,148.01,7.75]
[1718315887903,0.8238121,148.05,148.0,15.2933]
[1718315888226,0.8238121,148.05,148.01,7.75]
[1718315888726,0.8238121,148.05,148.0,15.2933]
[1718315888921,0.8238121,148.05,147.97,0.17]
[1718315889121,0.8238121,148.05,148.01,7.75]
[1718315890799,0.8238121,148.05,147.97,0.68]
[1718315891000,0.8238121,148.05,148.0,7.75]
[1718315892208,0.8238121,148.05,148.01,7.75]
[1718315893928,0.8238121,148.05,148.0,7.75]
[1718315894223,0.8238121,148.05,148.01,7.75]
[1718315894428,0.8238121,148.05,147.97,0.68]
[1718315894630,0.8238121,148.05,148.01,7.75]
[1718315896730,0.8238121,148.05,147.97,0.68]
[1718315896935,0.8238121,148.05,148.01,7.75]
[1718315902729,0.8238121,148.05,148.0,7.75]
[1718315903832,0.8238121,148.05,147.97,0.68]
[1718315904135,0.8238121,148.05,148.0,7.75]
[1718315910234,0.8238121,148.05,147.99,0.17]
[1718315910534,0.8238121,148.05,147.99,0.51]
[1718315910722,0.8238121,148.05,148.01,7.75]
[1718315911340,0.8238121,148.05,147.99,0.34]
[1718315911534,0.8238121,148.05,148.01,7.75]
[1718315915142,0.8238121,148.05,147.99,0.34]
[1718315916123,0.8238121,148.05,148.0,7.75]
[1718315916325,0.8238121,148.05,147.99,0.34]
[1718315916741,0.8238121,148.05,148.0,7.75]
[1718315918931,10.1363198,148.01,147.99,0.34]
[1718315919232,10.1363198,148.01,148.0,7.75]
[1718315919539,0.8238121,148.05,148.0,7.75]
[1718315919738,0.8238121,148.05,148.01,7.75]
[1718315919935,0.8238121,148.05,147.99,0.34]
[1718315920538,8.5738121,148.05,147.98,0.17]
[1718315920779,7.75,148.04,147.99,7.75]
[1718315921345,7.75,148.04,147.97,0.17]
[1718315921524,7.75,148.03,147.97,0.17]
[1718315921728,7.75,148.03,147.98,7.75]
[1718315922416,7.75,148.03,147.96,1.56343134]
[1718315922417,7.75,148.02,147.97,7.75]
[1718315924142,7.75,148.01,147.96,9.31343134]
[1718315925738,16.2722,148.03,147.96,9.31343134]
[1718315925944,7.75,148.02,147.96,1.56343134]
[1718315926152,7.75,148.02,147.96,9.31343134]
[1718315927843,7.75,148.02,147.96,1.56343134]
[1718315928044,7.75,148.02,147.96,9.31343134]
[1718315928250,7.75,148.01,147.96,1.56343134]
[1718315929665,7.75,148.0,147.96,1.56343134]
[1718315930051,7.75,147.99,147.96,1.56343134]
[1718315932045,6.2004,148.02,147.96,1.56343134]
[1718315932248,7.75,147.99,147.96,1.56343134]
[1718315935367,7.75,147.98,147.92,7.75]
[1718315935808,16.6102,148.01,147.89,6.3576]
[1718315935951,7.75,147.97,147.92,7.75]
[1718315936468,16.6102,148.01,147.93,7.75]
[1718315936664,7.75,147.99,147.94,7.75]
[1718315936975,7.75,147.98,147.89,6.3576]
[1718315937175,16.6102,148.01,147.89,6.3576]
[1718315937472,7.75,147.98,147.92,7.75]
[1718315938372,7.75,147.98,147.93,7.75]
[1718315939362,7.75,147.98,147.89,6.3576]
[1718315939561,7.75,147.98,147.92,7.75]
[1718315939767,7.75,147.97,147.92,7.75]
[1718315940267,16.6102,148.01,147.89,6.3576]
[1718315940268,116.6102,148.01,147.89,6.3576]
[1718315940473,7.75,147.96,147.89,6.3576]
[1718315940674,7.75,147.96,147.91,7.75]
[1718315941194,7.75,147.96,147.9,7.75]
[1718315941763,7.75,147.96,147.91,7.75]
[1718315941990,7.75,147.96,147.89,6.3576]
[1718315942276,7.75,147.96,147.91,7.75]
[1718315943591,7.75,147.96,147.88,15.6363]
[1718315944288,7.75,147.95,147.88,15.6363]
[1718315944585,7.75,147.95,147.89,7.75]
[1718315944774,7.75,147.94,147.89,7.75]
[1718315945466,15.0137,147.97,147.9,7.75]
[1718315945672,100.0,148.04,147.93,7.75]
[1718315945673,22.4196,148.03,147.93,7.75]
[1718315945994,7.75,147.99,147.93,7.75]
[1718315946159,7.75,147.98,147.93,7.75]
[1718315946754,7.75,147.98,147.92,7.75]
[1718315948082,7.75,147.97,147.92,7.75]
[1718315948984,22.4196,148.03,147.92,7.75]
[1718315949286,7.75,147.98,147.92,7.75]
[1718315949506,45.0,148.02,147.92,7.75]
[1718315949911,7.75,147.98,147.92,7.75]
[1718315950224,7.75,147.99,147.93,7.75]
[1718315950505,22.4196,148.03,147.91,31.0]
[1718315950690,22.4196,148.03,147.96,7.75]
[1718315950892,7.75,148.02,147.93,15.6704]
[1718315951207,16.3336,148.03,147.98,7.75]
[1718315951801,24.0836,148.03,147.94,0.17]
[1718315952103,24.0836,148.03,147.93,15.6704]
[1718315952104,7.75,148.01,147.96,7.75]
[1718315952701,16.3336,148.03,147.96,7.75]
[1718315954512,7.75,148.02,147.97,7.75]
[1718315955300,16.3336,148.03,147.97,7.75]
[1718315955501,16.3336,148.03,147.95,0.17]
[1718315955502,7.75,148.02,147.95,0.17]
[1718315955827,16.3336,148.03,147.97,7.75]
[1718315955986,7.75,148.02,147.97,7.75]
[1718315956184,7.75,148.02,147.95,0.17]
[1718315956389,7.75,148.02,147.96,7.75]
[1718315957405,7.75,148.02,147.95,0.17]
[1718315957587,7.75,148.02,147.96,7.75]
[1718315963285,0.8238121,148.05,147.96,7.75]
[1718315963482,0.8238121,148.05,147.94,20.34]
[1718315963483,7.75,148.02,147.97,7.75]
[1718315965193,7.75,148.02,147.95,0.17]
[1718315965402,7.75,148.02,147.96,7.75]
[1718315965806,7.75,148.01,147.96,7.75]
[1718315966196,153.5738121,148.05,147.94,20.0]
[1718315966425,7.75,147.99,147.93,7.75]
[1718315967392,7.75,147.98,147.91,20.0]
[1718315967597,7.75,147.97,147.92,7.75]
[1718315967792,7.75,147.98,147.91,20.0]
[1718315968001,7.75,147.98,147.92,7.75]
[1718315968515,7.75,147.98,147.93,7.75]
[1718315968689,7.75,147.98,147.91,0.17]
[1718315968897,7.75,147.98,147.92,0.17]
[1718315969218,7.75,147.98,147.92,0.34]
[1718315969529,7.75,147.98,147.93,7.75]
[1718315970100,25.72961663,148.04,147.94,7.75]
[1718315970300,7.75,148.01,147.95,7.75]
[1718315971509,7.75,148.01,147.92,0.34]
[1718315971722,6.2581,148.04,147.93,0.17]
[1718315971924,7.75,148.0,147.95,7.75]
[1718315972297,7.75,148.0,147.93,0.17]
[1718315972601,7.75,147.99,147.92,20.34]
[1718315972808,45.0,148.03,147.92,0.34]
[1718315973011,45.0,148.03,147.95,7.75]
[1718315973208,7.75,148.01,147.95,7.75]
[1718315975312,7.75,148.0,147.95,7.75]
[1718315976640,7.75,148.0,147.92,0.34]
[1718315976831,45.0,148.03,147.95,7.75]
[1718315977026,7.75,148.0,147.95,7.75]
[1718315979132,45.0,148.03,147.95,7.75]
[1718315979425,7.75,148.0,147.95,7.75]
[1718315979604,45.0,148.03,147.95,7.75]
[1718315980028,7.75,148.0,147.95,7.75]
[1718315980405,45.0,148.03,147.95,7.75]
[1718315980607,7.75,148.01,147.95,7.75]
[1718315981007,45.0,148.03,147.95,7.75]
[1718315981347,7.75,148.01,147.95,7.75]
[1718315981511,45.0,148.03,147.95,7.75]
[1718315981716,45.0,148.03,147.96,7.75]
[1718315982008,16.1789121,148.05,147.97,7.75]
[1718315982221,7.75,148.02,147.97,7.75]
[1718315982446,16.1789121,148.05,147.97,7.75]
[1718315982812,7.75,148.03,147.97,7.75]
[1718315983415,16.1789121,148.05,147.97,7.75]
[1718315983634,7.75,148.03,147.97,7.75]
[1718315984021,7.75,148.02,147.97,7.75]
[1718315988047,16.1789121,148.05,147.97,7.75]
[1718315988244,7.75,148.04,147.98,7.75]
[1718315988446,0.8238121,148.05,147.97,0.51]
[1718315988642,7.75,148.03,147.98,8.09]
[1718315988952,7.75,148.04,147.99,7.75]
[1718315989638,0.8238121,148.05,148.01,7.75]
[1718315990338,0.8238121,148.05,148.0,21.7609]
[1718315990520,0.8238121,148.05,148.01,8.26]
[1718315990724,0.8238121,148.05,148.01,0.51]
[1718315991139,0.8238121,148.05,148.01,8.26]
[1718315992434,0.8238121,148.05,148.02,7.75]
[1718315992637,0.8238121,148.05,148.01,8.26]
[1718315994340,0.8238121,148.05,148.01,0.51]
[1718315994531,0.8238121,148.05,148.01,8.26]
[1718315995353,8.5738121,148.05,147.99,0.17]
[1718315995552,8.5738121,148.05,148.0,7.75]
[1718315995762,8.5738121,148.05,147.99,28.43]
[1718315995934,8.5738121,148.05,147.99,20.68]
[1718315996258,0.8238121,148.05,148.01,7.75]
[1718315998749,0.8238121,148.05,147.99,20.68]
[1718315998957,0.8238121,148.05,148.0,7.75]
[1718315999259,8.5738121,148.05,148.0,7.75]
[1718315999959,0.8238121,148.05,148.0,7.75]
[1718316000156,0.8238121,148.05,148.01,0.34]
[1718316000556,7.75,148.02,147.94,22.1975]
[1718316000739,31.8238121,148.05,147.94,22.1975]
[1718316000946,7.75,148.01,147.96,7.75]
[1718316001564,7.75,147.99,147.94,22.1975]
[1718316001771,7.75,147.99,147.9,8.29261038]
[1718316001954,15.4691,148.04,147.9,30.02441038]
[1718316002154,7.75,147.98,147.93,7.75]
[1718316002976,7.75,147.98,147.9,31.58847597]
[1718316003156,7.75,147.98,147.93,7.75]
[1718316003372,7.75,147.99,147.9,31.58847597]
[1718316003571,7.75,147.99,147.94,7.75]
[1718316003866,7.75,147.99,147.91,0.17]
[1718316004069,7.75,147.99,147.9,23.29586559]
[1718316004273,7.75,147.98,147.93,7.75]
[1718316004474,7.75,147.98,147.9,23.29586559]
[1718316004781,45.0,148.03,147.92,7.75]
[1718316004955,7.75,147.98,147.9,23.29586559]
[1718316005148,7.75,147.98,147.91,20.0]
[1718316005463,7.75,147.98,147.93,7.75]
[1718316006075,45.0,148.03,147.93,7.75]
[1718316006374,7.75,147.98,147.93,7.75]
[1718316006967,7.75,147.99,147.91,20.0]
[1718316007168,7.75,147.99,147.92,0.51]
[1718316007371,7.75,147.99,147.93,7.75]
[1718316008561,45.0,148.03,147.94,8.09]
[1718316008877,45.0,148.03,147.94,7.75]
[1718316009083,7.75,148.0,147.94,7.75]
[1718316009373,7.75,148.0,147.95,0.17]
[1718316010462,7.75,148.0,147.95,7.92]
[1718316010671,7.75,148.0,147.95,0.17]
[1718316010982,15.4691,148.04,147.95,0.17]
[1718316011166,7.75,148.0,147.95,0.17]
[1718316012471,15.4691,148.04,147.95,0.17]
[1718316012777,7.75,148.0,147.95,0.17]
[1718316013679,15.4691,148.04,147.95,0.17]
[1718316013892,15.4691,148.04,147.95,7.92]
[1718316014055,7.75,148.01,147.96,8.09]
[1718316014258,15.4691,148.04,147.97,0.17]
[1718316014467,15.4691,148.04,147.97,8.26]
[1718316014680,7.75,148.01,147.97,0.17]
[1718316014856,7.75,148.01,147.96,7.92]
[1718316015253,7.75,148.02,147.97,7.75]
[1718316015468,7.75,148.01,147.96,0.17]
[1718316015668,7.75,148.01,147.96,8.26]
[1718316016282,7.75,148.01,147.96,0.17]
[1718316016463,7.75,148.01,147.95,23.4985]
[1718316016661,7.75,148.0,147.95,23.4985]
[1718316017654,7.75,148.01,147.95,23.4985]
[1718316019374,7.75,148.0,147.95,23.4985]
[1718316019880,7.75,148.0,147.95,15.7485]
[1718316020594,7.75,147.99,147.94,8.26]
[1718316020889,15.4691,148.04,147.95,0.17]
[1718316021181,7.75,147.99,147.95,0.17]
[1718316022193,7.75,147.99,147.94,0.51]
[1718316022371,7.75,147.99,147.91,36.3922]
[1718316022686,7.75,147.98,147.92,7.75]
[1718316022987,7.75,147.98,147.91,36.3922]
[1718316023399,7.75,147.98,147.91,16.3922]
[1718316023689,7.75,147.98,147.92,7.75]
[1718316024072,7.75,147.98,147.91,16.3922]
[1718316024392,7.75,147.97,147.92,7.75]
[1718316026172,7.75,147.97,147.91,24.4822]
[1718316026362,7.75,147.97,147.92,0.34]
[1718316026562,7.75,147.96,147.91,16.3922]
[1718316026769,7.75,147.96,147.91,24.1422]
[1718316026975,7.75,147.96,147.91,16.3922]
[1718316027698,7.75,147.96,147.91,24.1422]
[1718316029599,7.75,147.97,147.91,24.1422]
[1718316030596,6.4005,148.0,147.91,24.1422]
[1718316030802,7.75,147.97,147.92,7.75]
[1718316031395,7.75,147.97,147.91,24.1422]
[1718316031582,6.4005,148.0,147.91,24.1422]
[1718316031784,7.75,147.97,147.91,16.3922]
[1718316031982,7.75,147.97,147.91,24.1422]
[1718316032684,6.4005,148.0,147.91,16.3922]
[1718316032881,7.75,147.96,147.91,24.1422]
[1718316034097,7.75,147.96,147.9,14.2897]
[1718316034300,7.75,147.95,147.9,6.0297]
[1718316035081,7.75,147.95,147.9,13.7797]
[1718316035281,7.75,147.95,147.9,6.0297]
[1718316035503,7.75,147.95,147.9,13.7797]
[1718316035800,7.75,147.95,147.9,6.0297]
[1718316035990,7.75,147.95,147.9,13.7797]
[1718316036604,7.75,147.95,147.9,6.0297]
[1718316036811,7.75,147.94,147.9,6.0297]
[1718316040005,60.6011,147.99,147.9,6.0297]
[1718316040412,7.75,147.94,147.89,7.75]
[1718316040582,7.75,147.93,147.88,7.75]
[1718316041097,7.75,147.98,147.87,15.911]
[1718316041284,7.75,147.92,147.87,23.321]
[1718316041485,7.75,147.92,147.87,23.151]
[1718316043579,7.75,147.92,147.87,15.401]
[1718316045591,7.75,147.9,147.83,16.223]
[1718316045924,7.75,147.9,147.84,20.0]
[1718316046105,7.75,147.9,147.84,7.75]
[1718316046314,7.75,147.89,147.83,23.973]
[1718316046520,7.75,147.89,147.83,23.78357315]
[1718316046720,16.6466,147.94,147.83,23.78357315]
[1718316046721,7.75,147.88,147.83,23.78357315]
[1718316046890,7.75,147.91,147.78,13.84745615]
[1718316047210,7.75,147.87,147.82,7.75]
[1718316047612,31.0,147.91,147.82,7.75]
[1718316047783,31.0,147.91,147.78,6.1173]
[1718316047983,45.0,147.9,147.83,7.75]
[1718316048186,45.0,147.9,147.79,20.0]
[1718316048380,45.0,147.9,147.82,7.75]
[1718316048799,45.0,147.9,147.79,20.0]
[1718316049009,45.0,147.9,147.82,7.75]
[1718316049515,45.0,147.9,147.79,20.0]
[1718316049726,45.0,147.9,147.8,16.0844]
[1718316049884,45.0,147.9,147.81,7.75]
[1718316050089,45.0,147.9,147.8,16.0844]
[1718316050395,45.0,147.9,147.82,7.75]
[1718316051788,45.0,147.9,147.8,16.0844]
[1718316051789,15.5121,147.89,147.8,16.0844]
[1718316051990,15.5121,147.89,147.74,15.14165542]
[1718316051991,7.75,147.83,147.75,15.3638]
[1718316052213,7.75,147.82,147.77,7.75]
[1718316052422,7.75,147.83,147.78,7.75]
[1718316053424,7.75,147.82,147.77,7.75]
[1718316054123,7.75,147.82,147.75,15.3638]
[1718316054418,7.75,147.82,147.77,7.75]
[1718316057999,7.75,147.82,147.76,7.75]
[1718316059926,7.75,147.81,147.75,23.1138]
[1718316060126,7.75,147.81,147.74,6.4019]
[1718316060127,52.75,147.81,147.74,6.4019]
[1718316060427,7.75,147.8,147.74,6.4019]
[1718316060631,7.75,147.8,147.75,7.75]
[1718316061008,7.75,147.8,147.74,6.4019]
[1718316061409,7.75,147.8,147.75,7.75]
[1718316061823,7.75,147.8,147.74,14.1519]
[1718316062035,7.75,147.8,147.74,7.75]
[1718316063328,15.0758,147.84,147.74,7.75]
[1718316063530,7.75,147.8,147.74,7.75]
[1718316064328,45.0,147.83,147.75,7.75]
[1718316064532,7.75,147.79,147.71,16.5502]
[1718316064836,7.75,147.79,147.74,7.75]
[1718316065533,7.75,147.78,147.73,7.75]
[1718316065835,7.75,147.79,147.74,7.75]
[1718316067120,45.0,147.83,147.74,7.75]
[1718316067322,7.75,147.79,147.74,7.75]
[1718316069322,7.75,147.79,147.71,16.5502]
[1718316069524,7.75,147.79,147.74,7.75]
[1718316069737,7.75,147.78,147.73,7.75]
[1718316070621,7.75,147.79,147.74,7.75]
[1718316071015,45.0,147.83,147.74,7.75]
[1718316071222,7.75,147.79,147.74,7.75]
[1718316073508,7.75,147.79,147.73,7.75]
[1718316075128,7.75,147.78,147.73,7.75]
[1718316080028,45.0,147.83,147.73,7.75]
[1718316080240,7.75,147.78,147.73,7.75]
[1718316080917,7.75,147.79,147.73,7.75]
[1718316082842,7.75,147.78,147.73,7.75]
[1718316083925,45.0,147.83,147.71,16.5502]
[1718316084125,7.75,147.78,147.73,7.75]
[1718316084521,7.75,147.77,147.71,16.5502]
[1718316084844,7.75,147.77,147.71,24.3002]
[1718316085326,7.75,147.76,147.71,24.3002]
[1718316086940,7.75,147.76,147.7,6.0452]
[1718316087136,7.75,147.76,147.7,13.7952]
[1718316087531,7.75,147.75,147.7,6.0452]
[1718316087850,15.922,147.79,147.68,7.30404504]
[1718316087851,7.75,147.74,147.69,7.75]
[1718316088530,15.922,147.79,147.69,7.75]
[1718316088733,7.75,147.74,147.69,7.75]
[1718316089849,7.75,147.74,147.68,7.30404504]
[1718316090030,7.75,147.74,147.69,7.75]
[1718316090231,15.922,147.79,147.68,7.30404504]
[1718316090431,7.75,147.75,147.69,7.75]
[1718316092724,45.0,147.78,147.67,15.7082]
[1718316092725,7.75,147.74,147.67,15.3682]
[1718316092927,45.0,147.78,147.67,15.3682]
[1718316092928,7.75,147.72,147.67,15.3682]
[1718316093148,7.75,147.7,147.62,28.63159926]
[1718316093538,7.75,147.7,147.64,7.75]
[1718316094052,7.75,147.69,147.62,21.2721]
[1718316094269,7.75,147.69,147.63,20.0]
[1718316094428,7.75,147.69,147.64,7.75]
[1718316095155,7.75,147.69,147.63,27.75]
[1718316095755,7.75,147.69,147.62,21.2721]
[1718316096269,7.75,147.68,147.62,29.0221]
[1718316096631,116.6621,147.74,147.62,29.0221]
[1718316096632,7.75,147.67,147.62,21.2721]
[1718316097056,116.6621,147.74,147.63,7.75]
[1718316097227,7.75,147.69,147.63,7.75]
[1718316097569,7.75,147.68,147.63,7.75]
[1718316097732,7.75,147.68,147.62,29.0221]
[1718316098358,7.75,147.68,147.63,7.75]
[1718316099738,7.75,147.68,147.62,21.2721]
[1718316099948,7.75,147.68,147.63,7.75]
[1718316100332,200.0,147.74,147.58,15.8844]
[1718316100333,7.75,147.66,147.58,15.8844]
[1718316100641,7.75,147.66,147.6,7.75]
[1718316100850,7.75,147.65,147.6,7.75]
[1718316101653,7.75,147.65,147.58,15.8844]
[1718316101854,7.75,147.65,147.59,7.75]
[1718316102529,7.75,147.65,147.58,15.8844]
[1718316102729,7.75,147.65,147.59,7.75]
[1718316103253,7.75,147.63,147.58,15.8844]
[1718316103458,7.75,147.63,147.57,7.75]
[1718316103756,15.7925,147.69,147.57,7.75]
[1718316103757,7.75,147.62,147.57,7.75]
[1718316105373,7.75,147.63,147.55,16.4469]
[1718316105663,7.75,147.62,147.57,7.75]
[1718316106157,7.75,147.61,147.55,16.4469]
[1718316106333,15.3646,147.64,147.56,7.75]
[1718316106539,7.75,147.62,147.56,7.75]
[1718316107265,7.75,147.61,147.56,7.75]
[1718316107435,7.75,147.61,147.55,24.1969]
[1718316108261,7.75,147.59,147.54,0.8238121]
[1718316108487,7.75,147.58,147.54,0.8238121]
[1718316108832,100.0,147.62,147.54,0.8238121]
[1718316109036,7.75,147.57,147.54,0.8238121]
[1718316112286,7.75,147.56,147.54,0.8238121]
[1718316113976,45.0,147.55,147.54,0.8238121]
[1718316114159,52.75,147.55,147.54,0.8238121]
[1718316116030,45.0,147.55,147.54,0.8238121]
[1718316116166,52.75,147.55,147.54,0.8238121]
[1718316120226,6.5399,147.54,147.44,7.75]
[1718316120393,7.75,147.49,147.42,16.41]
[1718316120995,7.75,147.49,147.44,7.75]
[1718316121990,45.0,147.48,147.42,16.41]
[1718316122194,45.0,147.48,147.41,6.1637]
[1718316122195,7.75,147.46,147.41,6.1637]
[1718316122803,7.75,147.46,147.41,13.9137]
[1718316123203,45.0,147.48,147.41,13.9137]
[1718316123402,7.75,147.47,147.41,5.6637]
[1718316123702,7.75,147.46,147.41,13.4137]
[1718316125007,7.75,147.47,147.41,13.4137]
[1718316125213,15.8757,147.53,147.44,7.75]
[1718316125214,7.75,147.49,147.44,7.75]
[1718316125420,7.75,147.5,147.45,7.75]
[1718316125591,15.8757,147.53,147.44,7.75]
[1718316125791,7.75,147.49,147.44,7.75]
[1718316126199,7.75,147.49,147.41,5.6637]
[1718316126489,15.8757,147.53,147.44,7.75]
[1718316126688,7.75,147.5,147.45,7.75]
[1718316126889,15.8757,147.53,147.45,7.75]
[1718316127089,7.75,147.51,147.42,7.75]
[1718316127287,15.8757,147.53,147.43,0.34]
[1718316127502,23.6257,147.53,147.47,7.75]
[1718316127914,7.75,147.52,147.47,7.75]
[1718316128295,15.8757,147.53,147.47,7.75]
[1718316128491,7.75,147.52,147.45,15.2365]
[1718316130201,124.75773323,147.57,147.45,15.2365]
[1718316130401,7.75,147.52,147.45,15.2365]
[1718316131121,7.75,147.52,147.47,7.75]
[1718316131296,7.75,147.51,147.43,20.34]
[1718316131496,7.75,147.51,147.46,7.75]
[1718316131718,7.75,147.51,147.45,7.75]
[1718316132014,76.0,147.56,147.45,7.75]
[1718316132015,7.75,147.5,147.45,7.75]
[1718316133112,7.75,147.5,147.44,7.75]
[1718316133820,7.75,147.5,147.45,7.75]
[1718316134008,76.0,147.56,147.45,7.75]
[1718316134315,7.75,147.5,147.45,7.75]
[1718316134820,7.75,147.5,147.42,20.0]
[1718316135010,7.75,147.5,147.44,7.75]
[1718316136202,7.75,147.5,147.43,0.34]
[1718316136400,7.75,147.51,147.43,0.34]
[1718316137108,7.75,147.51,147.45,7.75]
[1718316137305,7.75,147.5,147.45,7.75]
[1718316137818,7.75,147.5,147.44,7.75]
[1718316138399,7.75,147.5,147.43,0.34]
[1718316138602,7.75,147.5,147.44,7.75]
[1718316140121,7.75,147.5,147.43,0.34]
[1718316140422,7.75,147.5,147.44,7.75]
[1718316140596,45.0,147.56,147.44,7.75]
[1718316140798,7.75,147.5,147.44,7.75]
[1718316142520,7.75,147.5,147.43,0.34]
[1718316142708,7.75,147.5,147.45,7.75]
[1718316143841,7.75,147.5,147.43,0.34]
[1718316144044,7.75,147.5,147.45,7.75]
[1718316144399,76.0,147.56,147.45,7.75]
[1718316144602,7.75,147.51,147.46,7.75]
[1718316145110,7.75,147.52,147.46,7.75]
[1718316145502,7.75,147.51,147.46,7.75]
[1718316146527,7.75,147.53,147.48,7.75]
[1718316146723,16.2488,147.57,147.48,7.75]
[1718316146935,7.75,147.54,147.48,7.75]
[1718316147628,7.75,147.54,147.47,1.35616347]
[1718316147823,7.75,147.54,147.48,7.75]
[1718316148027,7.75,147.54,147.49,1.35582572]
[1718316148347,7.75,147.54,147.48,7.75]
[1718316148500,16.2488,147.57,147.49,0.50271513]